[Event "Late-Titled-Tuesday-Blitz-January-16-2024"]
[Site "Chess.com"]
[Date "2024.01.16"]
[Round "7"]
[White "HaryKane"]
[Black "IPAchess"]
[Result "1-0"]
[WhiteElo "2558"]
[BlackElo "2386"]
[TimeControl "180+1"]
[EndTime "15:15:02 PST"]
[Termination "HaryKane won by resignation"]

1. d4 {[%clk 0:03:00.9]} 1... d5 {[%clk 0:02:59.7]} 2. c4 {[%clk 0:03:00]} 2...
e6 {[%clk 0:03:00.3]} 3. Nc3 {[%clk 0:02:59]} 3... Nf6 {[%clk 0:03:00.9]} 4. Nf3
{[%clk 0:02:58.8]} 4... Bb4 {[%clk 0:03:00.6]} 5. cxd5 {[%clk 0:02:54]} 5...
exd5 {[%clk 0:02:58]} 6. Bg5 {[%clk 0:02:51.8]} 6... Nbd7 {[%clk 0:02:58.5]} 7.
e3 {[%clk 0:02:50.7]} 7... h6 {[%clk 0:02:56.5]} 8. Bh4 {[%clk 0:02:50.1]} 8...
g5 {[%clk 0:02:43]} 9. Bg3 {[%clk 0:02:49.6]} 9... Ne4 {[%clk 0:02:43.7]} 10.
Rc1 {[%clk 0:02:48.5]} 10... h5 {[%clk 0:02:30.3]} 11. h3 {[%clk 0:02:22.7]}
11... Bxc3+ {[%clk 0:02:28.9]} 12. bxc3 {[%clk 0:02:21.9]} 12... Nxg3 {[%clk
0:02:29.7]} 13. fxg3 {[%clk 0:02:22.4]} 13... c6 {[%clk 0:01:56.4]} 14. Bd3
{[%clk 0:02:22]} 14... Nf8 {[%clk 0:01:45]} 15. O-O {[%clk 0:02:19.3]} 15... f6
{[%clk 0:01:43]} 16. e4 {[%clk 0:02:17.6]} 16... Be6 {[%clk 0:01:41.9]} 17. Re1
{[%clk 0:02:16.6]} 17... Qd7 {[%clk 0:01:37.6]} 18. exd5 {[%clk 0:02:11.5]}
18... cxd5 {[%clk 0:01:37.3]} 19. Qb3 {[%clk 0:01:55.4]} 19... Kf7 {[%clk
0:01:35.6]} 20. c4 {[%clk 0:01:54.8]} 20... Kg7 {[%clk 0:01:22.4]} 21. cxd5
{[%clk 0:01:45.2]} 21... Bxd5 {[%clk 0:01:23.3]} 22. Bc4 {[%clk 0:01:45.7]}
22... Bxf3 {[%clk 0:01:19.2]} 23. Qxf3 {[%clk 0:01:44.6]} 23... Ng6 {[%clk
0:01:18.4]} 24. Be6 {[%clk 0:01:37.6]} 24... Qxd4+ {[%clk 0:01:16.7]} 25. Kh2
{[%clk 0:01:35.9]} 25... Qd6 {[%clk 0:01:12]} 26. Rcd1 {[%clk 0:01:33.5]} 26...
g4 {[%clk 0:01:00.2]} 27. Qxb7+ {[%clk 0:01:32.1]} 27... Qe7 {[%clk 0:00:54.2]}
28. Rd7 {[%clk 0:01:30.7]} 1-0

[Event "Late-Titled-Tuesday-Blitz-January-16-2024"]
[Site "Chess.com"]
[Date "2024.01.16"]
[Round "7"]
[White "GMFYHR1"]
[Black "chegueps"]
[Result "0-1"]
[WhiteElo "2465"]
[BlackElo "2686"]
[TimeControl "180+1"]
[EndTime "15:15:09 PST"]
[Termination "chegueps won by resignation"]

1. e4 {[%clk 0:03:00.9]} 1... Nf6 {[%clk 0:03:00.9]} 2. e5 {[%clk 0:03:00]} 2...
Nd5 {[%clk 0:03:00.8]} 3. d4 {[%clk 0:03:00.7]} 3... d6 {[%clk 0:02:58.6]} 4.
Nf3 {[%clk 0:03:00.8]} 4... g6 {[%clk 0:02:58.1]} 5. Be2 {[%clk 0:02:56.9]} 5...
Bg7 {[%clk 0:02:58]} 6. O-O {[%clk 0:02:56.9]} 6... O-O {[%clk 0:02:57.8]} 7. c4
{[%clk 0:02:56.8]} 7... Nb6 {[%clk 0:02:58.3]} 8. h3 {[%clk 0:02:56.4]} 8... Nc6
{[%clk 0:02:53.2]} 9. exd6 {[%clk 0:02:55.3]} 9... cxd6 {[%clk 0:02:52.9]} 10.
Nc3 {[%clk 0:02:54.8]} 10... Bf5 {[%clk 0:02:44.5]} 11. Be3 {[%clk 0:02:52.3]}
11... d5 {[%clk 0:02:40.7]} 12. c5 {[%clk 0:02:50.2]} 12... Nc4 {[%clk
0:02:40.2]} 13. Bxc4 {[%clk 0:02:44.6]} 13... dxc4 {[%clk 0:02:41.1]} 14. Qa4
{[%clk 0:02:45.3]} 14... Bd3 {[%clk 0:02:40.6]} 15. Rfe1 {[%clk 0:02:46.1]}
15... Nxd4 {[%clk 0:02:36.9]} 16. Nxd4 {[%clk 0:02:36.4]} 16... Bxd4 {[%clk
0:02:37.8]} 17. Bxd4 {[%clk 0:02:35.9]} 17... Qxd4 {[%clk 0:02:38.5]} 18. Rxe7
{[%clk 0:02:36.7]} 18... Qxc5 {[%clk 0:02:15.5]} 19. Rxb7 {[%clk 0:02:36.4]}
19... Rab8 {[%clk 0:01:57.7]} 20. Qxa7 {[%clk 0:02:07.8]} 20... Qxa7 {[%clk
0:01:55.6]} 21. Rxa7 {[%clk 0:02:08.7]} 21... Rxb2 {[%clk 0:01:55.4]} 22. a4
{[%clk 0:02:09.4]} 22... Rb3 {[%clk 0:01:52]} 23. Nd5 {[%clk 0:02:08.7]} 23...
c3 {[%clk 0:01:49.8]} 24. Kh2 {[%clk 0:00:59.3]} 24... c2 {[%clk 0:01:41.4]} 25.
Nf4 {[%clk 0:00:57.5]} 25... Rb1 {[%clk 0:01:37.1]} 26. Nxd3 {[%clk 0:00:57.1]}
26... Rxa1 {[%clk 0:01:37.2]} 27. Rc7 {[%clk 0:00:57.9]} 27... Rd8 {[%clk
0:01:34.9]} 0-1

[Event "Late-Titled-Tuesday-Blitz-January-16-2024"]
[Site "Chess.com"]
[Date "2024.01.16"]
[Round "7"]
[White "katharinareinecke"]
[Black "McCarthyStone"]
[Result "0-1"]
[WhiteElo "2018"]
[BlackElo "2299"]
[TimeControl "180+1"]
[EndTime "15:15:13 PST"]
[Termination "McCarthyStone won by resignation"]

1. d4 {[%clk 0:02:58.1]} 1... d5 {[%clk 0:02:55]} 2. c4 {[%clk 0:02:52.5]} 2...
c6 {[%clk 0:02:54.8]} 3. Nf3 {[%clk 0:02:51.6]} 3... dxc4 {[%clk 0:02:51.4]} 4.
g3 {[%clk 0:02:50.7]} 4... Nd7 {[%clk 0:02:43]} 5. Bg2 {[%clk 0:02:50.5]} 5...
Ngf6 {[%clk 0:02:43.5]} 6. O-O {[%clk 0:02:50.1]} 6... e6 {[%clk 0:02:41.5]} 7.
Nbd2 {[%clk 0:02:44.7]} 7... b5 {[%clk 0:02:36.1]} 8. a4 {[%clk 0:02:41.8]} 8...
Bb7 {[%clk 0:02:31.4]} 9. Ne5 {[%clk 0:02:35.2]} 9... Nxe5 {[%clk 0:02:29.9]}
10. dxe5 {[%clk 0:02:35.3]} 10... Nd5 {[%clk 0:02:29.8]} 11. e4 {[%clk
0:02:25.1]} 11... Nb4 {[%clk 0:02:20.4]} 12. b3 {[%clk 0:02:10.6]} 12... c3
{[%clk 0:02:15.7]} 13. Nf3 {[%clk 0:01:57.3]} 13... Qxd1 {[%clk 0:02:00.4]} 14.
Rxd1 {[%clk 0:01:54.4]} 14... Bc5 {[%clk 0:02:00.8]} 15. Ba3 {[%clk 0:01:36.3]}
15... O-O {[%clk 0:01:44.3]} 16. Bxb4 {[%clk 0:01:31.1]} 16... Bxb4 {[%clk
0:01:45.2]} 17. Rd7 {[%clk 0:01:30.8]} 17... Rad8 {[%clk 0:01:26]} 18. Rxb7
{[%clk 0:01:24]} 18... c2 {[%clk 0:01:25.5]} 19. Rxa7 {[%clk 0:00:47.8]} 19...
Rd1+ {[%clk 0:01:19.6]} 0-1

[Event "Late-Titled-Tuesday-Blitz-January-16-2024"]
[Site "Chess.com"]
[Date "2024.01.16"]
[Round "7"]
[White "platy3"]
[Black "jinbojinbo"]
[Result "1-0"]
[WhiteElo "2885"]
[BlackElo "2647"]
[TimeControl "180+1"]
[EndTime "15:15:14 PST"]
[Termination "platy3 won by checkmate"]

1. e4 {[%clk 0:03:00.9]} 1... c5 {[%clk 0:02:59.7]} 2. Nf3 {[%clk 0:03:01.2]}
2... d6 {[%clk 0:03:00.2]} 3. Bb5+ {[%clk 0:03:00.4]} 3... Bd7 {[%clk
0:02:59.9]} 4. Bxd7+ {[%clk 0:03:00]} 4... Qxd7 {[%clk 0:03:00]} 5. O-O {[%clk
0:02:58.2]} 5... Nc6 {[%clk 0:03:00.2]} 6. c3 {[%clk 0:02:58.2]} 6... Nf6 {[%clk
0:02:59.3]} 7. Qe2 {[%clk 0:02:58.1]} 7... e6 {[%clk 0:02:59.5]} 8. d4 {[%clk
0:02:56.8]} 8... cxd4 {[%clk 0:02:59.7]} 9. cxd4 {[%clk 0:02:57.7]} 9... d5
{[%clk 0:02:59.7]} 10. e5 {[%clk 0:02:58.2]} 10... Ne4 {[%clk 0:03:00.1]} 11.
Nbd2 {[%clk 0:02:58]} 11... Nxd2 {[%clk 0:02:59.6]} 12. Bxd2 {[%clk 0:02:58.9]}
12... Be7 {[%clk 0:03:00.2]} 13. g3 {[%clk 0:02:59.1]} 13... O-O {[%clk
0:02:58.8]} 14. Rac1 {[%clk 0:02:59.8]} 14... Rfc8 {[%clk 0:02:58.2]} 15. h4
{[%clk 0:02:59.4]} 15... Qd8 {[%clk 0:02:44.2]} 16. h5 {[%clk 0:02:57.1]} 16...
h6 {[%clk 0:02:43.5]} 17. Kg2 {[%clk 0:02:44.6]} 17... Rc7 {[%clk 0:02:34.8]}
18. a3 {[%clk 0:02:32]} 18... Rac8 {[%clk 0:02:31.3]} 19. b4 {[%clk 0:02:31.8]}
19... a6 {[%clk 0:02:31.2]} 20. g4 {[%clk 0:02:25.2]} 20... Na7 {[%clk
0:02:27.7]} 21. Qd3 {[%clk 0:02:16.7]} 21... Rxc1 {[%clk 0:02:25.4]} 22. Rxc1
{[%clk 0:02:17.6]} 22... Rxc1 {[%clk 0:02:24.6]} 23. Bxc1 {[%clk 0:02:18.5]}
23... Qc8 {[%clk 0:02:21.1]} 24. Qb1 {[%clk 0:02:11.2]} 24... Nb5 {[%clk
0:02:20]} 25. g5 {[%clk 0:02:08.5]} 25... hxg5 {[%clk 0:02:13.8]} 26. Bxg5
{[%clk 0:02:07.8]} 26... Bf8 {[%clk 0:01:47.8]} 27. Bd2 {[%clk 0:01:38]} 27...
Be7 {[%clk 0:01:45.8]} 28. Bg5 {[%clk 0:01:19.1]} 28... Qd8 {[%clk 0:01:32.6]}
29. Bxe7 {[%clk 0:01:17.3]} 29... Qxe7 {[%clk 0:01:33.5]} 30. Qc1 {[%clk
0:01:17.8]} 30... Qc7 {[%clk 0:01:32.2]} 31. Qg5 {[%clk 0:01:15.8]} 31... Qc2
{[%clk 0:01:20.5]} 32. Qd8+ {[%clk 0:01:13]} 32... Kh7 {[%clk 0:01:20.2]} 33.
Ng5+ {[%clk 0:01:13.9]} 33... Kh6 {[%clk 0:01:20.7]} 34. Nxf7+ {[%clk
0:01:14.3]} 34... Kxh5 {[%clk 0:01:19.3]} 35. Qg5# {[%clk 0:01:14.5]} 1-0

[Event "Late-Titled-Tuesday-Blitz-January-16-2024"]
[Site "Chess.com"]
[Date "2024.01.16"]
[Round "7"]
[White "TEREZANA"]
[Black "ChessicallyInclined"]
[Result "1-0"]
[WhiteElo "2528"]
[BlackElo "2702"]
[TimeControl "180+1"]
[EndTime "15:15:16 PST"]
[Termination "TEREZANA won by resignation"]

1. d4 {[%clk 0:03:00.3]} 1... d5 {[%clk 0:02:59.1]} 2. Nf3 {[%clk 0:03:00.8]}
2... c6 {[%clk 0:02:59.2]} 3. c3 {[%clk 0:02:51.9]} 3... Bf5 {[%clk 0:02:58.5]}
4. Bf4 {[%clk 0:02:50.7]} 4... Nd7 {[%clk 0:02:58.4]} 5. Nbd2 {[%clk 0:02:50.8]}
5... e6 {[%clk 0:02:53.7]} 6. e3 {[%clk 0:02:48.3]} 6... Be7 {[%clk 0:02:53.7]}
7. h3 {[%clk 0:02:47]} 7... h6 {[%clk 0:02:53.6]} 8. Qb3 {[%clk 0:02:44.4]} 8...
b5 {[%clk 0:02:51.2]} 9. a4 {[%clk 0:02:42.5]} 9... a6 {[%clk 0:02:51.2]} 10.
Be2 {[%clk 0:02:41.5]} 10... Nb6 {[%clk 0:02:49.7]} 11. Ne5 {[%clk 0:02:40.9]}
11... Qc8 {[%clk 0:02:40.1]} 12. O-O {[%clk 0:02:40.3]} 12... Nxa4 {[%clk
0:02:31.4]} 13. Bh5 {[%clk 0:01:30.3]} 13... g6 {[%clk 0:02:24.6]} 14. Bf3
{[%clk 0:01:12.5]} 14... f6 {[%clk 0:02:18]} 15. e4 {[%clk 0:01:08.9]} 15...
fxe5 {[%clk 0:02:15.9]} 16. Bxe5 {[%clk 0:01:06.9]} 16... dxe4 {[%clk
0:02:09.5]} 17. Nxe4 {[%clk 0:01:05.4]} 17... Rh7 {[%clk 0:02:07.3]} 18. c4
{[%clk 0:00:50.1]} 18... Nb6 {[%clk 0:01:58.4]} 19. cxb5 {[%clk 0:00:50.4]}
19... axb5 {[%clk 0:01:58.2]} 20. g4 {[%clk 0:00:41.8]} 20... Rxa1 {[%clk
0:01:54.3]} 21. Rxa1 {[%clk 0:00:40.9]} 21... Bxe4 {[%clk 0:01:51.6]} 22. Bxe4
{[%clk 0:00:41.5]} 22... Kf7 {[%clk 0:01:51.5]} 23. Bxg6+ {[%clk 0:00:26.6]}
23... Kxg6 {[%clk 0:01:46.4]} 24. Qd3+ {[%clk 0:00:27.3]} 24... Kf7 {[%clk
0:01:46.7]} 25. Qxh7+ {[%clk 0:00:27.6]} 25... Ke8 {[%clk 0:01:42.5]} 26. Qxg8+
{[%clk 0:00:27]} 1-0

[Event "Late-Titled-Tuesday-Blitz-January-16-2024"]
[Site "Chess.com"]
[Date "2024.01.16"]
[Round "7"]
[White "EsmeraldasAnderson03"]
[Black "Mariia89"]
[Result "1-0"]
[WhiteElo "2391"]
[BlackElo "2210"]
[TimeControl "180+1"]
[EndTime "15:15:39 PST"]
[Termination "EsmeraldasAnderson03 won by checkmate"]

1. d4 {[%clk 0:03:00.9]} 1... Nf6 {[%clk 0:02:56.3]} 2. c4 {[%clk 0:02:56.3]}
2... c5 {[%clk 0:02:56.6]} 3. d5 {[%clk 0:02:56.3]} 3... b5 {[%clk 0:02:56.8]}
4. cxb5 {[%clk 0:02:57.2]} 4... a6 {[%clk 0:02:57.3]} 5. bxa6 {[%clk 0:02:58.1]}
5... Bxa6 {[%clk 0:02:58.2]} 6. Nc3 {[%clk 0:02:59]} 6... d6 {[%clk 0:02:58.6]}
7. g3 {[%clk 0:02:59.9]} 7... g6 {[%clk 0:02:58.9]} 8. Bg2 {[%clk 0:03:00.8]}
8... Bg7 {[%clk 0:02:59.6]} 9. Nf3 {[%clk 0:03:01.7]} 9... O-O {[%clk
0:03:00.1]} 10. O-O {[%clk 0:03:02.6]} 10... Nbd7 {[%clk 0:02:59.7]} 11. Rb1
{[%clk 0:03:03.2]} 11... Qa5 {[%clk 0:02:56.7]} 12. Bd2 {[%clk 0:03:02.7]} 12...
Rfb8 {[%clk 0:02:56.9]} 13. a4 {[%clk 0:03:03.2]} 13... Qb6 {[%clk 0:02:52.1]}
14. b3 {[%clk 0:03:03.6]} 14... Ra7 {[%clk 0:02:31.2]} 15. Qc2 {[%clk
0:03:02.1]} 15... Rc7 {[%clk 0:02:22.8]} 16. Rfe1 {[%clk 0:03:02]} 16... e5
{[%clk 0:02:07.6]} 17. dxe6 {[%clk 0:03:00.3]} 17... fxe6 {[%clk 0:02:07.7]} 18.
Ng5 {[%clk 0:03:00.6]} 18... d5 {[%clk 0:02:03.8]} 19. e4 {[%clk 0:02:58.3]}
19... h6 {[%clk 0:01:57.2]} 20. exd5 {[%clk 0:02:49.1]} 20... hxg5 {[%clk
0:01:52.1]} 21. dxe6 {[%clk 0:02:49.5]} 21... Nf8 {[%clk 0:01:48.1]} 22. e7
{[%clk 0:02:49.4]} 22... N8d7 {[%clk 0:01:43.5]} 23. Nd5 {[%clk 0:01:57.3]}
23... Nxd5 {[%clk 0:01:02.7]} 24. Bxd5+ {[%clk 0:01:58.2]} 24... Kh7 {[%clk
0:01:01.1]} 25. e8=Q {[%clk 0:01:58.1]} 25... Rxe8 {[%clk 0:01:00.3]} 26. Rxe8
{[%clk 0:01:59]} 26... Nf6 {[%clk 0:00:52.1]} 27. Re6 {[%clk 0:01:46.7]} 27...
Nxd5 {[%clk 0:00:31.1]} 28. Qxg6+ {[%clk 0:01:31.8]} 28... Kg8 {[%clk
0:00:26.8]} 29. Re8# {[%clk 0:01:31.4]} 1-0

[Event "Late-Titled-Tuesday-Blitz-January-16-2024"]
[Site "Chess.com"]
[Date "2024.01.16"]
[Round "7"]
[White "GlavkonVVS"]
[Black "Ticondriul"]
[Result "1-0"]
[WhiteElo "2486"]
[BlackElo "2721"]
[TimeControl "180+1"]
[EndTime "15:15:41 PST"]
[Termination "GlavkonVVS won by resignation"]

1. c4 {[%clk 0:03:00.9]} 1... b6 {[%clk 0:02:51.9]} 2. Nf3 {[%clk 0:02:58.7]}
2... Bb7 {[%clk 0:02:51.7]} 3. g3 {[%clk 0:02:59]} 3... e5 {[%clk 0:02:50.8]} 4.
Bg2 {[%clk 0:02:57.9]} 4... e4 {[%clk 0:02:51.2]} 5. Nd4 {[%clk 0:02:57.9]} 5...
Nf6 {[%clk 0:02:50.8]} 6. Nc3 {[%clk 0:02:54.6]} 6... Bc5 {[%clk 0:02:49.9]} 7.
Nb3 {[%clk 0:02:53]} 7... Bb4 {[%clk 0:02:49.6]} 8. O-O {[%clk 0:02:51.2]} 8...
h5 {[%clk 0:02:48.4]} 9. d3 {[%clk 0:02:50.6]} 9... Bxc3 {[%clk 0:02:48.6]} 10.
bxc3 {[%clk 0:02:50.6]} 10... h4 {[%clk 0:02:49.3]} 11. Bg5 {[%clk 0:02:50.2]}
11... hxg3 {[%clk 0:02:46.4]} 12. fxg3 {[%clk 0:02:47.3]} 12... Qe7 {[%clk
0:02:46.5]} 13. Bxf6 {[%clk 0:02:24.8]} 13... gxf6 {[%clk 0:02:46.4]} 14. Rf4
{[%clk 0:02:20.6]} 14... Na6 {[%clk 0:02:45.1]} 15. Bxe4 {[%clk 0:02:19.2]}
15... O-O-O {[%clk 0:02:45.5]} 16. Qf1 {[%clk 0:02:13.7]} 16... Bxe4 {[%clk
0:02:42.8]} 17. Rxe4 {[%clk 0:02:13.8]} 17... Qd6 {[%clk 0:02:43.2]} 18. Qf4
{[%clk 0:02:11.1]} 18... Qc6 {[%clk 0:02:40.8]} 19. a4 {[%clk 0:02:02.4]} 19...
Nc5 {[%clk 0:02:39.2]} 20. Nd4 {[%clk 0:02:01.1]} 20... Qb7 {[%clk 0:02:39.2]}
21. Re7 {[%clk 0:01:59.6]} 21... Kb8 {[%clk 0:02:38.6]} 22. a5 {[%clk
0:01:58.5]} 22... Rxh2 {[%clk 0:02:37.6]} 23. Kxh2 {[%clk 0:01:46]} 23... Rh8+
{[%clk 0:02:37.3]} 24. Qh4 {[%clk 0:01:36.5]} 24... Rxh4+ {[%clk 0:02:35.5]} 25.
gxh4 {[%clk 0:01:36.7]} 25... Qc8 {[%clk 0:02:32.7]} 26. Rxf7 {[%clk 0:01:23.7]}
26... Qe8 {[%clk 0:02:30.4]} 27. Rg7 {[%clk 0:01:14.8]} 27... Qh5 {[%clk
0:02:09]} 28. Kh3 {[%clk 0:01:09.9]} 28... Kb7 {[%clk 0:02:03.2]} 29. a6+ {[%clk
0:01:06.5]} 29... Nxa6 {[%clk 0:01:59.2]} 30. Rxd7 {[%clk 0:01:06]} 30... Nc5
{[%clk 0:01:58.4]} 31. Rg7 {[%clk 0:01:03.3]} 31... Qh6 {[%clk 0:01:48.9]} 32.
Rag1 {[%clk 0:00:57.8]} 32... Qe3+ {[%clk 0:01:43.1]} 33. R1g3 {[%clk 0:00:57]}
33... Qc1 {[%clk 0:01:40.2]} 34. Rf7 {[%clk 0:00:55]} 34... Qxc3 {[%clk
0:01:38.8]} 35. Rxc7+ {[%clk 0:00:53.4]} 35... Kb8 {[%clk 0:01:23.3]} 36. Rg8+
{[%clk 0:00:50.4]} 36... Kxc7 {[%clk 0:01:23.3]} 37. Nb5+ {[%clk 0:00:50.7]} 1-0

[Event "Late-Titled-Tuesday-Blitz-January-16-2024"]
[Site "Chess.com"]
[Date "2024.01.16"]
[Round "7"]
[White "stregachess"]
[Black "SmirnovTimofey2000"]
[Result "1-0"]
[WhiteElo "2068"]
[BlackElo "1963"]
[TimeControl "180+1"]
[EndTime "15:15:44 PST"]
[Termination "stregachess won on time"]

1. d4 {[%clk 0:03:00.9]} 1... d5 {[%clk 0:02:59.8]} 2. Nf3 {[%clk 0:03:00.7]}
2... Nf6 {[%clk 0:02:59.8]} 3. Bf4 {[%clk 0:03:00.9]} 3... Bf5 {[%clk 0:03:00]}
4. e3 {[%clk 0:03:01.1]} 4... e6 {[%clk 0:03:00.2]} 5. c3 {[%clk 0:03:01.4]}
5... Be7 {[%clk 0:02:57.6]} 6. h3 {[%clk 0:03:00.8]} 6... h6 {[%clk 0:02:57.1]}
7. Be2 {[%clk 0:03:00.7]} 7... c6 {[%clk 0:02:51.5]} 8. Nbd2 {[%clk 0:03:00]}
8... Nbd7 {[%clk 0:02:50.7]} 9. O-O {[%clk 0:02:59.5]} 9... O-O {[%clk
0:02:50.3]} 10. Ne5 {[%clk 0:02:59.5]} 10... a5 {[%clk 0:02:43.4]} 11. a4 {[%clk
0:02:43.2]} 11... Ne4 {[%clk 0:02:28.6]} 12. Nxd7 {[%clk 0:02:39.3]} 12... Qxd7
{[%clk 0:02:26.4]} 13. Nxe4 {[%clk 0:02:31.4]} 13... Bxe4 {[%clk 0:02:26.8]} 14.
Bd3 {[%clk 0:02:31.6]} 14... Bxd3 {[%clk 0:02:25]} 15. Qxd3 {[%clk 0:02:31.4]}
15... Bd6 {[%clk 0:02:25.5]} 16. Bxd6 {[%clk 0:02:30.9]} 16... Qxd6 {[%clk
0:02:26.4]} 17. e4 {[%clk 0:02:31]} 17... Rfd8 {[%clk 0:01:59.7]} 18. e5 {[%clk
0:02:30.4]} 18... Qe7 {[%clk 0:01:58.2]} 19. f4 {[%clk 0:02:30.6]} 19... c5
{[%clk 0:01:56.9]} 20. f5 {[%clk 0:02:30.1]} 20... exf5 {[%clk 0:01:50.5]} 21.
Rxf5 {[%clk 0:02:22.8]} 21... cxd4 {[%clk 0:01:40.4]} 22. cxd4 {[%clk
0:02:22.5]} 22... Rac8 {[%clk 0:01:38.4]} 23. Raf1 {[%clk 0:02:22.3]} 23... Rf8
{[%clk 0:01:36.5]} 24. Qf3 {[%clk 0:02:05.3]} 24... Qe6 {[%clk 0:01:19.4]} 25.
Qg4 {[%clk 0:01:53.4]} 25... Rc4 {[%clk 0:00:57.5]} 26. Rxf7 {[%clk 0:01:44.9]}
26... Qxf7 {[%clk 0:00:01.1]} 27. Rxf7 {[%clk 0:01:43.9]} 27... Rxf7 {[%clk
0:00:02]} 28. b3 {[%clk 0:01:43.9]} 1-0

[Event "Late-Titled-Tuesday-Blitz-January-16-2024"]
[Site "Chess.com"]
[Date "2024.01.16"]
[Round "7"]
[White "jup1978"]
[Black "Nick12772"]
[Result "1-0"]
[WhiteElo "2484"]
[BlackElo "2337"]
[TimeControl "180+1"]
[EndTime "15:15:51 PST"]
[Termination "jup1978 won by resignation"]

1. d4 {[%clk 0:03:00.9]} 1... Nf6 {[%clk 0:03:00.1]} 2. Nf3 {[%clk 0:02:59.7]}
2... g6 {[%clk 0:03:00.5]} 3. Nbd2 {[%clk 0:02:59.2]} 3... d5 {[%clk 0:03:00.2]}
4. e3 {[%clk 0:02:57.8]} 4... Bg7 {[%clk 0:03:00.7]} 5. c4 {[%clk 0:02:57.9]}
5... c6 {[%clk 0:03:00.8]} 6. b4 {[%clk 0:02:55.2]} 6... O-O {[%clk 0:03:00.2]}
7. Be2 {[%clk 0:02:54]} 7... a6 {[%clk 0:02:59.9]} 8. O-O {[%clk 0:02:52.8]}
8... Bg4 {[%clk 0:02:59.9]} 9. a4 {[%clk 0:02:52.6]} 9... Nbd7 {[%clk
0:02:59.7]} 10. Ba3 {[%clk 0:02:45]} 10... Re8 {[%clk 0:02:59.2]} 11. b5 {[%clk
0:02:42.1]} 11... axb5 {[%clk 0:02:58.3]} 12. axb5 {[%clk 0:02:42]} 12... dxc4
{[%clk 0:02:48.5]} 13. bxc6 {[%clk 0:02:40.3]} 13... bxc6 {[%clk 0:02:41.4]} 14.
Nxc4 {[%clk 0:02:39.7]} 14... Nd5 {[%clk 0:02:22]} 15. Bb2 {[%clk 0:02:30.9]}
15... c5 {[%clk 0:02:09.7]} 16. h3 {[%clk 0:02:23.8]} 16... Bf5 {[%clk
0:01:55.6]} 17. Nh4 {[%clk 0:02:01.6]} 17... Rxa1 {[%clk 0:01:49.2]} 18. Bxa1
{[%clk 0:01:54.2]} 18... Be6 {[%clk 0:01:49.3]} 19. e4 {[%clk 0:01:49.8]} 19...
Nf4 {[%clk 0:01:41.8]} 20. d5 {[%clk 0:01:42]} 20... Bxa1 {[%clk 0:01:41.3]} 21.
dxe6 {[%clk 0:01:38]} 21... Nb6 {[%clk 0:01:09.9]} 22. exf7+ {[%clk 0:01:28.3]}
22... Kxf7 {[%clk 0:01:06.4]} 23. Nxb6 {[%clk 0:01:27.4]} 23... Qxb6 {[%clk
0:01:01.6]} 24. Bc4+ {[%clk 0:01:26.2]} 24... Kg7 {[%clk 0:00:55]} 25. Qxa1+
{[%clk 0:01:24.3]} 25... e5 {[%clk 0:00:55.3]} 26. Rb1 {[%clk 0:01:18.3]} 26...
Qf6 {[%clk 0:00:54]} 27. Rb7+ {[%clk 0:01:07.4]} 27... Re7 {[%clk 0:00:54.3]}
28. Rxe7+ {[%clk 0:00:46.3]} 28... Qxe7 {[%clk 0:00:55.2]} 29. Nf3 {[%clk
0:00:46.1]} 1-0

[Event "Late-Titled-Tuesday-Blitz-January-16-2024"]
[Site "Chess.com"]
[Date "2024.01.16"]
[Round "7"]
[White "Maitreia"]
[Black "only_strong_moves"]
[Result "0-1"]
[WhiteElo "2712"]
[BlackElo "2570"]
[TimeControl "180+1"]
[EndTime "15:15:56 PST"]
[Termination "only_strong_moves won by resignation"]

1. c4 {[%clk 0:03:00.9]} 1... e6 {[%clk 0:02:59.3]} 2. Nf3 {[%clk 0:02:56.2]}
2... Nf6 {[%clk 0:02:59.6]} 3. g3 {[%clk 0:02:56.6]} 3... d5 {[%clk 0:02:59.6]}
4. Bg2 {[%clk 0:02:57.5]} 4... Be7 {[%clk 0:02:59.9]} 5. O-O {[%clk 0:02:35.2]}
5... O-O {[%clk 0:02:57.8]} 6. b3 {[%clk 0:02:34.7]} 6... c5 {[%clk 0:02:56.2]}
7. e3 {[%clk 0:02:34.3]} 7... d4 {[%clk 0:02:55.8]} 8. exd4 {[%clk 0:02:34.6]}
8... cxd4 {[%clk 0:02:56.7]} 9. Ba3 {[%clk 0:02:35.3]} 9... Nc6 {[%clk
0:02:53.1]} 10. Re1 {[%clk 0:02:34.5]} 10... Re8 {[%clk 0:02:46]} 11. d3 {[%clk
0:02:33]} 11... Bxa3 {[%clk 0:02:39.3]} 12. Nxa3 {[%clk 0:02:30.1]} 12... e5
{[%clk 0:02:40.2]} 13. Nc2 {[%clk 0:02:23.8]} 13... h6 {[%clk 0:02:39.5]} 14.
Nd2 {[%clk 0:02:23.6]} 14... Bf5 {[%clk 0:02:35.9]} 15. Ne4 {[%clk 0:02:23.6]}
15... Nxe4 {[%clk 0:02:34.8]} 16. Bxe4 {[%clk 0:02:24.5]} 16... Bxe4 {[%clk
0:02:35.4]} 17. Rxe4 {[%clk 0:02:25.4]} 17... f5 {[%clk 0:02:35]} 18. Re1 {[%clk
0:02:24.4]} 18... e4 {[%clk 0:02:21.2]} 19. b4 {[%clk 0:02:21.7]} 19... Qf6
{[%clk 0:02:08.9]} 20. Kg2 {[%clk 0:02:07.5]} 20... Rad8 {[%clk 0:01:56]} 21. b5
{[%clk 0:01:45.8]} 21... Ne5 {[%clk 0:01:55.6]} 22. dxe4 {[%clk 0:01:46.4]}
22... Nxc4 {[%clk 0:01:26.8]} 23. e5 {[%clk 0:01:21.9]} 23... Rxe5 {[%clk
0:01:24]} 24. Rxe5 {[%clk 0:01:17.9]} 24... Qxe5 {[%clk 0:01:22.9]} 25. Qd3
{[%clk 0:01:12]} 25... Qe4+ {[%clk 0:01:21.7]} 26. Qxe4 {[%clk 0:01:09.6]} 26...
fxe4 {[%clk 0:01:22.6]} 27. Re1 {[%clk 0:00:57.4]} 27... d3 {[%clk 0:01:23]} 28.
Ne3 {[%clk 0:00:57.8]} 28... d2 {[%clk 0:01:22.5]} 29. Rd1 {[%clk 0:00:53.5]}
29... Nb2 {[%clk 0:01:22.1]} 30. Rb1 {[%clk 0:00:49.7]} 30... d1=Q {[%clk
0:01:19.5]} 31. Nxd1 {[%clk 0:00:49]} 31... Nxd1 {[%clk 0:01:20.4]} 32. Rc1
{[%clk 0:00:44.2]} 32... Rd2 {[%clk 0:01:13.7]} 33. Rc8+ {[%clk 0:00:43.3]}
33... Kh7 {[%clk 0:01:13.7]} 0-1